[Event "French-ch U16-U18 2024"]
[Site "Agen"]
[Date "2024.04.17"]
[Round "5.13"]
[White "Le Coz, Marie Sarah"]
[Black "Dufeux, Elia"]
[Result "1-0"]
[ECO "A11"]
[WhiteElo "1840"]
[BlackElo "1728"]
[Annotator "NA RC COMBH"]
[PlyCount "53"]
[EventDate "2024.04.14"]
[EventType "swiss"]
[EventCountry "FRA"]
[SourceTitle "playchess.com"]
[Source "ChessBase"]
[SourceQuality "1"]
[TimeControl "5400+30"]

1. Nf3 {[%emt 0:00:03]} d5 {[%emt 0:00:26]} 2. g3 {[%emt 0:00:14]} Nf6 {[%emt 0:00:14]} 3. c4 {[%emt 0:00:36]} c6 {[%emt 0:01:37]} 4. Bg2 {[%emt 0:01:53]} g6 {[%emt 0:00:27]} 5. O-O {[%emt 0:02:19]} Bg7 {[%emt 0:00:06]} 6. cxd5 {[%emt 0:02:38]} cxd5 {[%emt 0:00:51]} 7. Qa4+ {[%emt 0:02:46]} Nc6 {[%emt 0:03:49]} 8. Ne5 {[%emt 0:05:50]} Qc7 {[%emt 0:05:58]} 9. d4 {[%emt 0:03:18]} O-O {[%emt 0:02:11]} 10. Bf4 {[%emt 0:03:46]} Qb6 {[%emt 0:06:47]} 11. Nxc6 {[%emt 0:03:14]} bxc6 {[%emt 0:00:46]} 12. Nc3 {[%emt 0:02:32]} Nd7 {[%emt 0:06:59]} 13. e4 {[%emt 0:04:29]} Bxd4 {[%emt 0:08:33]} 14. exd5 {[%emt 0:02:50]} Ba6 {[%emt 0:02:46]} 15. dxc6 {[%emt 0:09:20]} Bxf1 {[%emt 0:05:47]} 16. Rxf1 {[%emt 0:00:18]} Nf6 {[%emt 0:04:35]} 17. h3 {[%emt 0:03:23]} a6 {[%emt 0:14:13]} 18. g4 {[%emt 0:05:08]} e5 {[%emt 0:11:20]} 19. Bg5 {[%emt 0:03:16]} Qxb2 {[%emt 0:06:45]} 20. Nd1 {[%emt 0:04:18]} Qb5 {[%emt 0:00:43]} 21. Qxb5 {[%emt 0:02:22]} axb5 {[%emt 0:00:04]} 22. Bxf6 {[%emt 0:00:09]} Rxa2 {[%emt 0:00:21]} 23. Ne3 {[%emt 0:02:08]} Re8 {[%emt 0:09:08]} 24. Nd5 {[%emt 0:03:35]} Bc5 {[%emt 0:02:20]} 25. c7 {[%emt 0:01:18]} b4 {[%emt 0:06:14]} 26. Bd8 {[%emt 0:00:53]} Rc2 {[%emt 0:00:00]} 27. Nf6+ {[%emt 0:02:28]} 1-0

[Event "French-ch U16-U18 2024"]
[Site "Agen"]
[Date "2024.04.17"]
[Round "5.14"]
[White "Riss, Selenia"]
[Black "Hamm, Gabrielle"]
[Result "0-1"]
[ECO "B53"]
[WhiteElo "1763"]
[BlackElo "1797"]
[Annotator "NA RC COMBH"]
[PlyCount "92"]
[EventDate "2024.04.14"]
[EventType "swiss"]
[EventCountry "FRA"]
[SourceTitle "playchess.com"]
[Source "ChessBase"]
[SourceQuality "1"]
[TimeControl "5400+30"]

1. e4 {[%emt 0:00:02]} c5 {[%emt 0:00:07]} 2. Nf3 {[%emt 0:00:05]} d6 {[%emt 0:00:04]} 3. d4 {[%emt 0:00:03]} cxd4 {[%emt 0:00:06]} 4. Qxd4 {[%emt 0:00:05]} Nc6 {[%emt 0:00:43]} 5. Bb5 {[%emt 0:00:05]} Bd7 {[%emt 0:03:39]} 6. Bxc6 {[%emt 0:00:58]} Bxc6 {[%emt 0:01:26]} 7. c4 {[%emt 0:00:06]} Nf6 {[%emt 0:03:25]} 8. Nc3 {[%emt 0:00:06]} e6 {[%emt 0:02:34]} 9. O-O {[%emt 0:00:07]} Be7 {[%emt 0:01:54]} 10. b3 {[%emt 0:01:25]} O-O {[%emt 0:00:30]} 11. Bb2 {[%emt 0:00:19]} Re8 {[%emt 0:04:12]} 12. Qd3 {[%emt 0:02:00]} a6 {[%emt 0:01:55]} 13. Nd4 {[%emt 0:01:15]} Bd7 {[%emt 0:11:13]} 14. Rad1 {[%emt 0:05:41]} Rc8 {[%emt 0:04:02]} 15. Rfe1 {[%emt 0:04:48]} Qa5 {[%emt 0:04:57]} 16. h3 {[%emt 0:09:19]} Qg5 {[%emt 0:01:43]} 17. Re3 {[%emt 0:04:27]} Nh5 {[%emt 0:01:58]} 18. Nce2 {[%emt 0:02:41]} d5 {[%emt 0:10:07]} 19. Nf3 {[%emt 0:09:59]} Nf4 {[%emt 0:11:23]} 20. Nxf4 {[%emt 0:03:22]} Qxf4 {[%emt 0:00:27]} 21. exd5 {[%emt 0:01:18]} exd5 {[%emt 0:01:46]} 22. cxd5 {[%emt 0:05:21]} Bb5 {[%emt 0:04:00]} 23. Qd2 {[%emt 0:01:19]} Bd6 {[%emt 0:05:35]} 24. Rxe8+ {[%emt 0:14:37]} Rxe8 {[%emt 0:00:07]} 25. Qc3 {[%emt 0:01:03]} f6 {[%emt 0:02:26]} 26. Rd4 {[%emt 0:03:57]} Qf5 {[%emt 0:08:09]} 27. Rd1 {[%emt 0:08:23]} Re2 {[%emt 0:03:43]} 28. g4 {[%emt 0:02:36]} Qe4 {[%emt 0:04:55]} 29. Qc8+ {[%emt 0:10:47]} Kf7 {[%emt 0:00:50]} 30. Qxb7+ {[%emt 0:01:49]} Kf8 {[%emt 0:03:16]} 31. Qc8+ {[%emt 0:03:50]} Be8 {[%emt 0:00:43]} 32. Qc3 {[%emt 0:00:44]} Rc2 {[%emt 0:00:58]} 33. Nd2 {[%emt 0:01:11]} Qg6 {[%emt 0:01:09]} 34. Qd4 {[%emt 0:00:30]} Bc5 {[%emt 0:00:20]} 35. Qe4 {[%emt 0:00:43]} Rxb2 {[%emt 0:00:27]} 36. Qc4 {[%emt 0:01:29]} Qc2 {[%emt 0:01:06]} 37. Rc1 {[%emt 0:00:22]} Qxd2 {[%emt 0:00:21]} 38. Qxc5+ {[%emt 0:00:09]} Kg8 {[%emt 0:00:53]} 39. d6 {[%emt 0:00:26]} Rxa2 {[%emt 0:00:13]} 40. b4 {[%emt 0:00:34]} Rb2 {[%emt 0:01:03]} 41. Qc4+ {[%emt 0:00:48]} Kf8 {[%emt 0:00:01]} 42. Qc5 {[%emt 0:00:00]} Bd7 {[%emt 0:00:45]} 43. Qb6 {[%emt 0:02:18]} Qxc1+ {[%emt 0:00:25]} 44. Kg2 {[%emt 0:00:14]} Qc6+ {[%emt 0:00:12]} 45. Qxc6 {[%emt 0:00:10]} Bxc6+ {[%emt 0:00:04]} 46. Kg3 {[%emt 0:00:11]} Rxb4 {[%emt 0:00:09]} 0-1

[Event "French-ch U16-U18 2024"]
[Site "Agen"]
[Date "2024.04.17"]
[Round "5.15"]
[White "Kosteniuk, Kristina"]
[Black "Beil, Romane"]
[Result "1/2-1/2"]
[ECO "B01"]
[WhiteElo "1852"]
[BlackElo "1652"]
[Annotator "NA RC COMBH"]
[PlyCount "59"]
[EventDate "2024.04.14"]
[EventType "swiss"]
[EventCountry "FRA"]
[SourceTitle "playchess.com"]
[Source "ChessBase"]
[SourceQuality "1"]
[TimeControl "5400+30"]

1. e4 {[%emt 0:00:10]} d5 {[%emt 0:00:06]} 2. exd5 {[%emt 0:00:11]} Nf6 {[%emt 0:00:06]} 3. Bb5+ {[%emt 0:00:39]} Nbd7 {[%emt 0:00:06]} 4. c4 {[%emt 0:00:51]} a6 {[%emt 0:00:06]} 5. Ba4 {[%emt 0:00:06]} b5 {[%emt 0:00:20]} 6. cxb5 {[%emt 0:00:19]} Nxd5 {[%emt 0:01:25]} 7. Nc3 {[%emt 0:00:12]} Nb4 {[%emt 0:04:21]} 8. d4 {[%emt 0:21:50]} Bb7 {[%emt 0:09:25]} 9. Nf3 {[%emt 0:10:04]} e6 {[%emt 0:05:16]} 10. bxa6 {[%emt 0:11:49]} Bxa6 {[%emt 0:12:54]} 11. Ne5 {[%emt 0:08:14]} c6 {[%emt 0:23:28]} 12. Nxc6 {[%emt 0:06:38]} Nxc6 {[%emt 0:00:29]} 13. Bxc6 {[%emt 0:00:05]} Rb8 {[%emt 0:04:09]} 14. Qa4 {[%emt 0:06:42]} Bc8 {[%emt 0:02:12]} 15. a3 {[%emt 0:09:35]} Qc7 {[%emt 0:02:52]} 16. O-O {[%emt 0:06:27]} Bd6 {[%emt 0:01:57]} 17. h3 {[%emt 0:00:06]} O-O {[%emt 0:00:35]} 18. Bf3 {[%emt 0:01:36]} Nb6 {[%emt 0:04:54]} 19. Qc6 {[%emt 0:02:33]} Qd8 {[%emt 0:05:24]} 20. Nb5 {[%emt 0:01:49]} Be7 {[%emt 0:00:35]} 21. Qc7 {[%emt 0:06:36]} Ba6 {[%emt 0:03:02]} 22. Qxd8 {[%emt 0:00:22]} Rfxd8 {[%emt 0:00:49]} 23. Be2 {[%emt 0:01:15]} Na4 {[%emt 0:06:08]} 24. Nc3 {[%emt 0:00:33]} Bxe2 {[%emt 0:00:51]} 25. Nxe2 {[%emt 0:00:01]} Nxb2 {[%emt 0:00:27]} 26. a4 {[%emt 0:01:38]} Bf6 {[%emt 0:01:40]} 27. Be3 {[%emt 0:02:46]} Ra8 {[%emt 0:01:22]} 28. Rfb1 {[%emt 0:00:36]} Nxa4 {[%emt 0:03:26]} 29. Kf1 {[%emt 0:00:44]} Nb6 {[%emt 0:00:19]} 30. Rxa8 {[%emt 0:00:21]} 1/2-1/2

[Event "French-ch U16-U18 2024"]
[Site "Agen"]
[Date "2024.04.17"]
[Round "5.16"]
[White "Mendoza, Mael"]
[Black "Razafindratsima, Timothe"]
[Result "0-1"]
[ECO "B69"]
[WhiteElo "2088"]
[BlackElo "2438"]
[Annotator "TA"]
[PlyCount "84"]
[EventDate "2024.04.14"]
[EventType "swiss"]
[EventCountry "FRA"]
[SourceTitle "playchess.com"]
[Source "ChessBase"]
[SourceQuality "1"]
[TimeControl "5400+30"]

{[%evp 30,84,17,27,21,-21,0,-55,20,0,104,-15,-10,-56,-51,-35,18,0,0,-116,-116,-106,-62,-109,-116,-119,0,-115,-120,-132,-125,-190,-183,-301,-342,-531,-531,-518,-511,-500,-496,-466,-441,-1126,-1117,-1098,-1133,-1089,-877,-1097,-1127,-1086,-1093,-1329,-1315,-1129,-1053]} 1. e4 {[%emt 0:00:04]} c5 {[%emt 0:00:08]} 2. Nf3 {[%emt 0:00:09]} d6 {[%emt 0:00:09]} 3. d4 {[%emt 0:00:07]} cxd4 {[%emt 0:00:06]} 4. Nxd4 {[%emt 0:00:05]} Nf6 {[%emt 0:00:09]} 5. Nc3 {[%emt 0:00:11]} Nc6 {[%emt 0:00:10]} 6. Bg5 {[%emt 0:00:33]} e6 {[%emt 0:00:15]} 7. Qd2 {[%emt 0:00:26]} a6 {[%emt 0:00:16]} 8. O-O-O {[%emt 0:00:25]} Bd7 {[%emt 0:00:22]} 9. f4 {[%emt 0:01:02]} Be7 {[%emt 0:00:40]} 10. Nf3 {[%emt 0:01:03]} b5 {[%emt 1:33:15]} 11. Bxf6 {[%emt 0:00:51]} gxf6 {[%emt 0:00:00]} 12. Kb1 {[%emt 0:00:34]} Qb6 {[%emt 0:00:00]} 13. f5 {[%emt 0:00:54]} O-O-O {[%emt 0:00:00]} 14. g3 {[%emt 0:01:49]} Kb8 {[%emt 0:00:00]} 15. fxe6 {[%emt 0:05:33]} fxe6 {[%emt 0:00:00]} 16. Bh3 {[%emt 0:00:18]} Na5 {[%emt 0:00:00]} 17. Ne2 {[%emt 0:22:17]} Nc4 {[%emt 0:00:00]} 18. Qh6 {[%emt 0:15:28]} ({Better is} 18. Qd4 $11) 18... Qc5 {[%emt 0:00:00]} (18... d5 $1 $15 19. exd5 e5) 19. Nfd4 {[%emt 0:20:23]} Rc8 {[%emt 0:00:00] [#]} (19... e5 $1 $11 20. Bxd7 Rxd7) 20. Qc1 {[%emt 0:08:48]} (20. Bxe6 Bxe6 21. Nxe6 Qb4 $19) (20. Nxe6 $2 Qb4 21. b3 Na3+ 22. Ka1 Nxc2+ (22... Qxe4 23. N2d4 $11) 23. Kb2 Qxe4 $19) (20. c3 $1 $16) 20... f5 $1 $11 {[%emt 0:00:00]} 21. exf5 {[%emt 0:02:16]} (21. Rhe1 $11) 21... e5 $15 {[%emt 0:00:00]} 22. Nb3 {[%emt 0:02:06]} Qe3 {[%emt 0:00:00]} (22... Qc6 $1 $15) 23. Nc3 {[%emt 0:07:31]} (23. Qxe3 $5 Nxe3 24. Rd3 Nxc2 25. Nc3 $17 (25. f6 Bxh3 26. fxe7 Rhe8 $15)) 23... Na3+ {[%emt 0:00:00]} 24. Ka1 {[%emt 0:00:01]} (24. bxa3 $11 {was the only way to keep the balance.} Rxc3 (24... Qxc3 25. Qd2 $11) (24... Qxc1+ 25. Nxc1 Rxc3 26. Nd3 $14) 25. Rhe1 (25. f6 Qxc1+ 26. Nxc1 Bxh3 $17) 25... Qxc1+ 26. Kxc1) 24... Rxc3 $1 $17 {[%emt 0:00:00]} 25. bxc3 {[%emt 0:00:59]} Qxc3+ {[%emt 0:00:00]} 26. Qb2 {[%emt 0:00:04]} Nxc2+ {[%emt 0:00:00] White is weak on the dark squares} 27. Kb1 {[%emt 0:00:06]} Qxb2+ {[%emt 0:00:00]} 28. Kxb2 {[%emt 0:00:02]} Ne3 {[%emt 0:00:00][%csl LRd1,LRf5]} 29. Rde1 {[%emt 0:02:52]} Nc4+ {[%emt 0:00:00][%mdl 1024] Black has strong compensation.} (29... Nxf5 30. Rhf1 Nxg3 (30... Rf8 31. Rf3 $16) 31. Bxd7 Nxf1 32. Rxf1 $16) (29... Bxf5 30. Bxf5 Nxf5 31. Rhf1 $18) 30. Kc3 {[%emt 0:05:43] [#]} (30. Kb1 $17 {keeps fighting.}) 30... Bg5 $1 $19 {[%emt 0:00:00]} 31. Rhf1 {[%emt 0:01:14]} (31. Kd3 {was necessary.}) 31... Rc8 {[%emt 0:00:00]} 32. Kd3 {[%emt 0:00:15]} (32. Rc1 $142) 32... Nb2+ {[%emt 0:00:00] Black is clearly winning.} 33. Ke2 {[%emt 0:00:12]} Rc2+ {[%emt 0:00:00]} 34. Kf3 {[%emt 0:00:19]} h5 {[%emt 0:00:04] And now ...Bc6+ would win.} 35. Na5 {[%emt 0:01:47]} Nc4 {[%emt 0:01:38]} (35... Rxh2 36. Rh1 Rxh1 37. Rxh1 $17) 36. Re2 {[%emt 0:01:27]} (36. Rf2 $142 Rxf2+ 37. Kxf2 Nxa5 38. Rb1) 36... e4+ {[%emt 0:00:53]} 37. Rxe4 {[%emt 0:00:34]} Nd2+ {[%emt 0:00:59]} 38. Ke2 {[%emt 0:00:27]} Nxe4+ {[%emt 0:00:12]} 39. Kd3 {[%emt 0:00:01]} Rxa2 {[%emt 0:00:42]} 40. Kxe4 {[%emt 0:00:34]} Rxa5 {[%emt 0:00:05]} 41. f6 {[%emt 0:00:09]} Bxh3 {[%emt 0:00:18]} 42. f7 {[%emt 0:00:04]} Be7 {[%emt 0:00:04] Weighted Error Value: White=0.67/Black=0.12 (very precise) .  Mistake:       	White=8     	Black=3      Inaccurate:     	White=3     	---        OK:         	White=3     	Black=7      Best:        	White=2     	Black=5      Strong:       	---       	Black=2} (42... Bxf1 43. f8=Q+ Kb7 44. Qg7+ (44. Qxf1 b4 $16) 44... Kb6 45. Qxg5 Bg2+ 46. Ke3 Ra3+ 47. Kd2 $16) 0-1

[Event "French-ch U16-U18 2024"]
[Site "Agen"]
[Date "2024.04.17"]
[Round "5.17"]
[White "Makkar, Rajat"]
[Black "Tulliez, Andre"]
[Result "1-0"]
[ECO "A22"]
[WhiteElo "2452"]
[BlackElo "2157"]
[Annotator "TA"]
[PlyCount "45"]
[EventDate "2024.04.14"]
[EventType "swiss"]
[EventCountry "FRA"]
[SourceTitle "playchess.com"]
[Source "ChessBase"]
[SourceQuality "1"]
[TimeControl "5400+30"]

{[%evp 17,45,40,48,42,51,45,87,77,65,74,72,74,125,125,200,187,203,195,189,201,329,320,518,491,529,532,522,428,429,438]} 1. c4 {[%emt 0:00:06]} e5 {[%emt 0:00:06][%cal Be7e5,Be5e4][%mdl 32]} 2. g3 {[%emt 0:00:18]} c6 {[%emt 0:00:19]} 3. Nf3 {[%emt 0:00:25]} e4 {[%emt 0:00:57]} 4. Nd4 {[%emt 0:00:13]} d5 {[%emt 0:05:42]} 5. cxd5 {[%emt 0:00:47]} Nf6 {[%emt 0:06:57]} 6. Bg2 {[%emt 0:02:06]} cxd5 {[%emt 0:08:53]} 7. d3 {[%emt 0:04:51]} Bb4+ {[%emt 0:15:58]} 8. Nc3 {[%emt 0:08:24]} O-O {[%emt 0:03:40]} 9. O-O {[%emt 0:00:44]} Re8 {[%emt 0:05:41]} 10. Qc2 {[%emt 0:07:07]} h6 {[%emt 0:05:08]} 11. Be3 {[%emt 0:06:20]} Qe7 {[%emt 0:12:11]} 12. Rac1 {[%emt 0:01:50][%cal Ba1c1,Bc1c3,Bc3c8][%mdl 32] White is better.} Bd7 {[%emt 0:01:57]} 13. Qb3 {[%emt 0:02:43]} Bxc3 {[%emt 0:10:49]} 14. Rxc3 {[%emt 0:01:01]} Bg4 {[%emt 0:00:17]} (14... b6 $142) 15. h3 $16 {[%emt 0:03:01] White is more active.} Bh5 {[%emt 0:00:38]} (15... Bc8 $16 16. Rfc1 Na6) 16. dxe4 $18 {[%emt 0:03:06]} dxe4 {[%emt 0:01:35]} 17. Nf5 {[%emt 0:01:37]} Qe6 {[%emt 0:03:10] Black is weak on the dark squares} 18. Qxe6 {[%emt 0:01:46]} Rxe6 {[%emt 0:01:51]} (18... fxe6 {might work better.} 19. Nd6 Rf8) 19. Rc8+ {[%emt 0:00:43]} Kh7 $2 {[%emt 0:01:38]} (19... Re8 20. Rxe8+ Nxe8) 20. g4 {[%emt 0:00:25] White is clearly winning.} Bg6 {[%emt 0:00:01]} 21. Rd1 {[%emt 0:00:19] [#] Black must now prevent Rdd8.} Re8 {[%emt 0:02:51]} 22. Rxe8 {[%emt 0:00:34]} Nxe8 {[%emt 0:00:02]} 23. Rd8 {[%emt 0:02:42] Black did not feel at home in the position after the opening.   Weighted Error Value: White=0.13 (very precise) /Black=0.51.  Mistake:       	---       	Black=4      Inaccurate:     	---       	Black=1      OK:         	White=7     	Black=5} ({Resist} 23. Bxe4 Nc6 24. Rd7 Rb8 $18) 1-0

[Event "French-ch U16-U18 2024"]
[Site "Agen"]
[Date "2024.04.17"]
[Round "5.18"]
[White "Belkaid, Sohan"]
[Black "Darrigrand, Mathieu"]
[Result "1-0"]
[ECO "B30"]
[WhiteElo "2412"]
[BlackElo "2018"]
[Annotator "TA"]
[PlyCount "61"]
[EventDate "2024.04.14"]
[EventType "swiss"]
[EventCountry "FRA"]
[SourceTitle "playchess.com"]
[Source "ChessBase"]
[SourceQuality "1"]
[TimeControl "5400+30"]

{[%evp 9,61,-23,36,16,17,0,12,-16,42,-1,6,0,30,-47,48,10,45,0,57,55,58,62,52,66,56,52,62,36,37,0,0,-31,91,91,97,95,118,108,103,85,135,135,151,141,140,72,723,736,744,734,860,860,851,830]} 1. e4 {[%emt 0:00:05]} c5 {[%emt 0:00:07]} 2. Nf3 {[%emt 0:00:21]} Nc6 {[%emt 0:00:15]} 3. Bc4 {[%emt 0:02:21]} e6 {[%emt 0:01:54]} 4. O-O {[%emt 0:00:27]} d5 {[%emt 0:04:11]} 5. Bb5 {[%emt 0:00:27]} Bd6 {[%emt 0:02:18]} (5... dxe4 $11 6. Ne5 Nge7) 6. Bxc6+ {[%emt 0:24:10]} bxc6 {[%emt 0:00:22]} 7. Qe2 {[%emt 0:00:14]} Ne7 {[%emt 0:11:41]} 8. d3 {[%emt 0:04:20] The position is equal.} Ba6 {[%emt 0:05:20]} ({Better is} 8... f6 $11) 9. c4 {[%emt 0:04:35]} O-O {[%emt 0:04:33]} 10. Nc3 {[%emt 0:01:37]} Ng6 {[%emt 0:06:05]} 11. Na4 {[%emt 0:04:21]} (11. e5 $1 $11 Be7 12. Na4) 11... Qc7 {[%emt 0:05:38]} (11... e5 $1 $15) 12. b3 {[%emt 0:15:42]} f5 {[%emt 0:10:54]} 13. exd5 {[%emt 0:19:47]} exd5 {[%emt 0:03:58]} (13... cxd5 $11 14. d4 (14. Qxe6+ Kh8 $15) 14... e5 15. Nxc5 Bxc5 16. dxc5 Rae8) 14. Re1 $14 {[%emt 0:00:28]} Rae8 {[%emt 0:12:58]} 15. Qxe8 {[%emt 0:03:53]} Rxe8 {[%emt 0:00:06]} 16. Rxe8+ {[%emt 0:00:02]} Kf7 {[%emt 0:00:54]} 17. Re2 {[%emt 0:00:17][%cal Be8e2,Be2c2,Bc2c4][%mdl 32]} h6 {[%emt 0:04:57] Wards off Ng5+} 18. h3 {[%emt 0:01:30]} Bc8 {[%emt 0:02:42]} 19. Ba3 {[%emt 0:07:36]} Nf4 {[%emt 0:02:14][%csl LRd3,LRe2]} 20. Rc2 {[%emt 0:00:08]} Nxd3 {[%emt 0:05:58]} (20... g5 $15 {stays ahead.} 21. cxd5 g4 (21... Nxd3 22. Nxc5 Nf4 23. Ne6 $18) 22. hxg4 fxg4 (22... cxd5 23. Bxc5 fxg4 24. Ne1 $17)) 21. Rd1 $16 {[%emt 0:00:18]} dxc4 {[%emt 0:00:51]} 22. Rxc4 {[%emt 0:00:17]} Ne5 {[%emt 0:01:57]} 23. Nxe5+ {[%emt 0:00:08]} Bxe5 {[%emt 0:00:05]} 24. Nxc5 {[%emt 0:00:25]} f4 {[%emt 0:03:30]} (24... Kg8 $142) 25. Ne4 {[%emt 0:00:31] Bd6 would now be deadly. White is more active.} (25. Nd3 f3 $14) 25... f3 {[%emt 0:01:46] [#]} 26. Bd6 $1 $36 {[%emt 0:03:53][%mdl 2048] Black is under strong pressure.} (26. gxf3 Bxh3 27. Bd6 Qd7 $11) 26... Qd7 {[%emt 0:02:35]} 27. Rd3 {[%emt 0:01:29] Some like it hot} (27. gxf3 $6 Bh2+ 28. Kxh2 Qxh3+ 29. Kg1 Qxf3 $11) ({White should play} 27. Rd2 Qe6 28. Rd3 (28. Rxc6 Bb7 $16) (28. gxf3 Qg6+ 29. Kf1 Bf6 $11) (28. Bxe5 Qxe5 29. gxf3 Bxh3 $16) 28... Bxd6 29. Rxd6 (29. Nxd6+ Kg8 $11)) 27... Bxd6 {[%emt 0:02:24][%mdl 8192] Loses the game.} (27... fxg2 $16 28. Rf3+ (28. Kxg2 Bxd6 29. Nxd6+ Kg8 $11) 28... Bf6) 28. Rxd6 $18 {[%emt 0:01:39] White is clearly winning.} Qe7 {[%emt 0:02:07]} 29. Rdxc6 {[%emt 0:00:14]} ({Weaker is} 29. gxf3 Be6 $16) 29... Bd7 {[%emt 0:01:02]} 30. Rc7 {[%emt 0:00:21]} fxg2 {[%emt 0:00:30]} 31. Rd4 {[%emt 0:00:26] Weighted Error Value: White=0.25 (precise) /Black=0.33.  Loses game:     	---       	Black=1      Mistake:       	White=2     	Black=5      Inaccurate:     	White=7     	Black=2      OK:         	White=5     	Black=6      Best:        	White=1     	Black=2} ({And not} 31. Kxg2 Kg8 $11) 1-0

[Event "French-ch U16-U18 2024"]
[Site "Agen"]
[Date "2024.04.17"]
[Round "5.19"]
[White "Thibous, Mathis"]
[Black "Pichon, Ewen"]
[Result "1/2-1/2"]
[ECO "A17"]
[WhiteElo "2123"]
[BlackElo "2252"]
[Annotator "TA"]
[PlyCount "51"]
[EventDate "2024.04.14"]
[EventType "swiss"]
[EventCountry "FRA"]
[SourceTitle "playchess.com"]
[Source "ChessBase"]
[SourceQuality "1"]
[TimeControl "5400+30"]

{[%evp 9,51,13,14,0,10,15,15,21,19,14,60,22,20,8,16,15,12,0,0,0,0,0,0,0,0,0,6,6,0,-9,23,33,17,25,81,0,80,93,68,76,61,70,109,89]} 1. c4 {[%emt 0:00:56]} e6 {[%emt 0:03:34]} 2. Nc3 {[%emt 0:00:29]} d5 {[%emt 0:00:18]} 3. e3 {[%emt 0:00:10]} Nf6 {[%emt 0:00:15]} 4. Nf3 {[%emt 0:00:13]} a6 {[%emt 0:01:02]} 5. b3 {[%emt 0:04:40]} Bd6 {[%emt 0:01:16]} 6. Bb2 {[%emt 0:01:53]} dxc4 {[%emt 0:00:24]} 7. bxc4 {[%emt 0:00:50]} b6 {[%emt 0:01:06]} 8. d4 {[%emt 0:07:00] The position is equal.} Bb7 {[%emt 0:00:47] Prevents e4.} 9. Bd3 {[%emt 0:15:02]} c5 {[%emt 0:00:16]} (9... Nbd7 $11) 10. O-O {[%emt 0:03:50][%cal Od4d5]} cxd4 {[%emt 0:01:37]} 11. exd4 {[%emt 0:00:24]} O-O {[%emt 0:00:30]} 12. Re1 {[%emt 0:11:28][%cal Od4d5]} Qc7 {[%emt 0:09:04]} 13. h3 {[%emt 0:08:32][%cal Od4d5]} Nbd7 {[%emt 0:12:29]} 14. Rc1 {[%emt 0:01:54]} Rfe8 {[%emt 0:03:35]} 15. Ne4 {[%emt 0:20:35]} Nxe4 {[%emt 0:06:22]} 16. Bxe4 {[%emt 0:00:01]} Bxe4 {[%emt 0:00:44]} 17. Rxe4 {[%emt 0:00:02]} Rac8 {[%emt 0:01:07]} 18. Qb3 {[%emt 0:11:09]} Qc6 {[%emt 0:13:20]} 19. d5 {[%emt 0:05:55]} exd5 {[%emt 0:17:53]} (19... Qb7 $5) 20. Rxe8+ {[%emt 0:00:04]} Rxe8 {[%emt 0:00:03]} 21. cxd5 {[%emt 0:00:04]} Qb7 {[%emt 0:01:07]} (21... Qb5 $11) 22. Qc3 {[%emt 0:04:52]} ({White should try} 22. Rc6 $16 Bf8 23. Qd3) 22... Ne5 {[%emt 0:03:09]} (22... f6 $11 {keeps the balance.}) 23. Nxe5 $16 {[%emt 0:00:45]} Bxe5 {[%emt 0:00:05]} 24. Re1 {[%emt 0:00:28]} f6 {[%emt 0:00:05]} ({But not} 24... Qxd5 $2 25. Rxe5 Qxe5 26. Qxe5 $18) 25. Qd2 {[%emt 0:00:58] [#] f4 would now be deadly.} Qd7 {[%emt 0:08:20]} 26. Bxe5 {[%emt 0:00:19] Weighted Error Value: White=0.10 (very precise) /Black=0.18 (very precise) .  Mistake:       	White=1     	Black=3      Inaccurate:     	White=1     	Black=2      OK:         	White=7     	Black=7      Best:        	White=3     	---} 1/2-1/2